[Event "7th Sharjah Masters 2024"]
[Site "Sharjah"]
[Date "2024.05.22"]
[Round "9.15"]
[White "Pranav, V."]
[Black "Nihal Sarin"]
[Result "1/2-1/2"]
[ECO "B90"]
[WhiteElo "2587"]
[BlackElo "2680"]
[Annotator "RC"]
[PlyCount "72"]
[EventDate "2024.05.13"]
[EventType "swiss"]
[EventCountry "UAE"]
[SourceTitle "playchess.com"]
[Source "ChessBase"]
[SourceQuality "1"]
[TimeControl "5400+30"]

1. e4 {[%emt 0:00:01]} c5 {[%emt 0:05:16]} 2. Nf3 {[%emt 0:00:10]} d6 {[%emt 0:00:09]} 3. d4 {[%emt 0:00:08]} cxd4 {[%emt 0:00:05]} 4. Nxd4 {[%emt 0:00:07]} Nf6 {[%emt 0:00:04]} 5. Nc3 {[%emt 0:00:09]} a6 {[%emt 0:00:04]} 6. Be3 {[%emt 0:00:12]} e5 {[%emt 0:01:10]} 7. Nb3 {[%emt 0:00:08]} Be7 {[%emt 0:00:24]} 8. Qd2 {[%emt 1:33:35]} Ng4 {[%emt 0:01:28]} 9. g3 {[%emt 0:00:00]} Nd7 {[%emt 0:16:22]} 10. Bh3 {[%emt 0:00:00]} Nxe3 {[%emt 0:28:56]} 11. Qxe3 {[%emt 0:00:00]} Bg5 {[%emt 0:02:06]} 12. f4 {[%emt 0:00:00]} exf4 {[%emt 0:00:43]} 13. gxf4 {[%emt 0:00:00]} Bh4+ {[%emt 0:00:03]} 14. Ke2 {[%emt 0:00:00]} O-O {[%emt 0:02:08]} 15. Rad1 {[%emt 0:00:00]} Nb6 {[%emt 0:03:56]} 16. Na5 {[%emt 0:00:00]} Qc7 {[%emt 0:11:16]} 17. Rhg1 {[%emt 0:00:00]} Bf6 {[%emt 0:15:56]} 18. e5 {[%emt 0:00:00]} dxe5 {[%emt 0:00:14]} 19. Ne4 {[%emt 0:00:00]} exf4 {[%emt 0:00:10]} 20. Nxf6+ {[%emt 0:00:00]} Kh8 {[%emt 0:00:01]} 21. Qd4 {[%emt 0:00:00]} Qe7+ {[%emt 0:00:15]} 22. Kf3 {[%emt 0:00:00]} Qxf6 {[%emt 0:00:06]} 23. Qxf6 {[%emt 0:00:00]} gxf6 {[%emt 0:00:06]} 24. Bxc8 {[%emt 0:00:00]} Raxc8 {[%emt 0:00:04]} 25. Rd6 {[%emt 0:01:55]} Na4 {[%emt 0:01:11]} 26. Rxf6 {[%emt 0:03:24]} Nxb2 {[%emt 0:04:35]} 27. Nxb7 {[%emt 0:00:09]} Rxc2 {[%emt 0:02:09]} 28. Nd6 {[%emt 0:00:43]} Rc7 {[%emt 0:01:12]} 29. Kxf4 {[%emt 0:00:21]} Nd3+ {[%emt 0:00:44]} 30. Ke4 {[%emt 0:00:53]} Nb4 {[%emt 0:00:07]} 31. a4 {[%emt 0:01:36]} Re7+ {[%emt 0:02:44]} 32. Kd4 {[%emt 0:00:15]} Nc6+ {[%emt 0:01:13]} 33. Kd5 {[%emt 0:00:16]} Nd8 {[%emt 0:00:58]} 34. Rgf1 {[%emt 0:02:42]} Kg7 {[%emt 0:00:47]} 35. h4 {[%emt 0:00:36]} h6 {[%emt 0:00:38]} 36. Rxh6 {[%emt 0:00:35]} Kxh6 {[%emt 0:00:18]} 1/2-1/2

[Event "7th Sharjah Masters 2024"]
[Site "Sharjah"]
[Date "2024.05.22"]
[Round "9.16"]
[White "Iniyan, Pa"]
[Black "Ter-Sahakyan, Samvel"]
[Result "1-0"]
[ECO "E53"]
[WhiteElo "2497"]
[BlackElo "2652"]
[Annotator "TA"]
[PlyCount "112"]
[EventDate "2024.05.13"]
[EventType "swiss"]
[EventCountry "UAE"]
[SourceTitle "playchess.com"]
[Source "ChessBase"]
[SourceQuality "1"]
[TimeControl "5400+30"]

{[%evp 61,112,38,39,31,57,0,12,0,6,0,30,0,71,23,46,23,44,0,186,187,234,251,231,209,292,310,291,248,256,266,309,312,346,316,346,337,487,487,485,382,758,690,1015,820,879,815,851,849,1050,1022,29977,29978,5439]} 1. d4 {[%emt 1:31:00]} Nf6 {[%emt 1:31:00]} 2. c4 e6 {[%emt 0:00:30]} 3. Nc3 {[%emt 0:01:00]} Bb4 {[%emt 0:00:30]} 4. e3 {[%emt 0:00:30]} O-O {[%emt 0:00:30]} 5. Bd3 {[%emt 0:00:30]} d5 {[%emt 0:00:30]} 6. a3 {[%emt 0:00:30]} Bxc3+ {[%emt 0:00:30]} 7. bxc3 {[%emt 0:00:30]} dxc4 {[%emt 0:00:30]} 8. Bxc4 {[%emt 0:00:30]} c5 {[%emt 0:00:30]} 9. Nf3 {[%emt 0:00:30]} Qc7 {[%emt 0:00:30]} 10. Be2 {[%emt 0:00:30]} b6 {[%emt 0:00:30] E53: Nimzo-Indian: Rubinstein: Main Line (4...0-0 5 Nf3 d5 6 Bd3 c5 7 0-0).} 11. Bb2 $1 {[%emt 0:00:30][%mdl 4] outshines the older 11.0-0.} cxd4 {[%emt 0:00:30]} 12. exd4 $146 {[%emt 0:00:30]} ({Predecessor:} 12. cxd4 Ba6 13. O-O Qb7 14. Re1 Bxe2 15. Qxe2 Nbd7 16. e4 Rac8 17. h3 b5 18. Rad1 {0-1 Giri,A (2760)-Praggnanandhaa,R (2661) Miami FTX Crypto Cup rapid 2022 (2.4)}) 12... Ba6 {[%emt 0:00:30]} 13. Bxa6 {[%emt 0:00:30]} Nxa6 {[%emt 0:00:30]} 14. Qe2 {[%emt 0:00:30]} Nb8 {[%emt 0:00:30]} 15. O-O {[%emt 0:00:30]} Nbd7 {[%emt 0:00:30]} 16. c4 {[%emt 0:00:30]} Rac8 {[%emt 0:00:30]} 17. Nd2 {[%emt 0:00:30]} Qf4 {[%emt 0:00:30]} 18. a4 {[%emt 0:00:30]} Qg4 {[%emt 0:00:30]} 19. Qe3 {[%emt 0:00:30]} Rfe8 {[%emt 0:00:30]} 20. Rfe1 {[%emt 0:00:30]} Nf8 {[%emt 0:00:30]} 21. h3 {[%emt 0:00:30]} Qf5 {[%emt 0:00:30]} 22. g4 {[%emt 0:00:30]} Qc2 {[%emt 0:00:30]} 23. Ba3 {[%emt 0:00:30]} h6 {[%emt 0:00:30]} 24. Rec1 {[%emt 0:00:30]} Qg6 {[%emt 0:00:30]} 25. f4 {[%emt 0:00:30]} N8d7 {[%emt 0:00:30]} 26. Rc3 {[%emt 0:00:30]} Rc7 {[%emt 0:00:30]} 27. Kh2 {[%emt 0:00:30]} Rec8 {[%emt 0:00:30]} 28. Rac1 {[%emt 0:00:30]} a6 {[%emt 0:00:30]} 29. g5 {[%emt 0:00:30]} Ne8 {[%emt 0:00:30]} 30. Ne4 {[%emt 0:00:30]} h5 {[%emt 0:00:30]} 31. c5 {[%emt 0:00:30]} bxc5 {[%emt 0:00:30]} 32. dxc5 {[%emt 0:00:30]} Nb8 {[%emt 0:00:30]} 33. Rc4 {[%emt 0:00:30]} Nc6 {[%emt 0:00:30]} 34. Nd6 {[%emt 0:00:30]} Rb8 {[%emt 0:00:30]} 35. Qf3 {[%emt 0:00:30]} (35. f5 exf5 36. Qf4 (36. Nxe8 $2 Re7 $19) 36... Rd7 $17) 35... h4 {[%emt 0:00:30]} 36. Qc3 {[%emt 0:00:30]} Ne7 {[%emt 0:00:30]} (36... Rd7 $11 {remains equal.}) 37. Nxe8 {[%emt 0:00:30]} ({Better is} 37. c6 $16) 37... Rxe8 $11 {[%emt 0:00:30]} 38. c6 {[%emt 0:00:30]} Nd5 {[%emt 0:00:30]} (38... Rec8 {simplifies} 39. Bxe7 Rxe7 40. Qe3 Rec7) 39. Qd4 {[%emt 0:00:30]} Qh5 $2 {[%emt 0:00:30]} (39... Rb8 $11 {and Black is okay.} 40. Bd6 Qf5 41. Bxc7 Rb3) 40. Qd3 $18 {[%emt 0:00:30]} Rd8 {[%emt 0:00:30] [#]} (40... Rcc8 $142 41. c7 Qh7) 41. Bb4 $1 $18 {[%emt 0:00:30]} Rcc8 {[%emt 0:00:30] [#]} 42. Rd4 $1 {[%emt 0:00:30]} Qh7 {[%emt 0:00:30]} 43. f5 {[%emt 0:00:30]} (43. Qxa6 Qf5 44. c7 Nxc7 (44... Nxf4 $2 45. Rxd8+ Kh7 46. Qf1 $18) 45. Rxc7 Rxd4 46. Rxc8+ (46. Qxc8+ $2 Kh7 $19) 46... Kh7 $11) 43... Qh5 {[%emt 0:00:30]} (43... Qxf5 $2 44. Qxf5 exf5 45. Ba5 $18 (45. Rxh4 f4 $11) (45. c7 Nxc7 46. Rxd8+ Rxd8 $18)) 44. Bd2 {[%emt 0:00:30]} (44. Qxa6 $2 Nxb4 (44... Qxg5 $2 45. Rg1 $19) 45. Qc4 Qf3 $19 (45... Nxc6 $2 46. Rxd8+ Rxd8 47. Qg4 $19) (45... Qxg5 $2 46. Rg4 $19) (45... Rxd4 $2 46. Qxd4 Qe2+ 47. Kg1 $19)) 44... Re8 {[%emt 0:00:30]} 45. Qe4 {[%emt 0:00:30]} (45. Qxa6 exf5 46. Qf1 (46. Rxd5 $2 Qf3 $19) 46... Ne3 47. Bxe3 Rxe3 48. Qxf5 Qe2+ 49. Kh1 Rxc6 $11) 45... Rcd8 {[%emt 0:00:30]} 46. Qg4 {[%emt 0:00:30]} (46. Qxh4 $2 {perishes.} Qe2+ 47. Kg1 Ne3 $19) 46... Qxg4 {[%emt 0:00:30]} 47. hxg4 {[%emt 0:00:30]} (47. Rxg4 exf5 48. Rd4 Nc7 49. Rxd8 Rxd8 $11) 47... Rc8 {[%emt 0:00:30]} 48. Ba5 {[%emt 0:00:30]} Rb8 {[%emt 0:00:30]} (48... Kf8 $142 49. g6 fxg6 50. fxe6 (50. fxg6 Ke7 $18) 50... Rxe6 51. Rxd5 Rcxc6 52. Rxc6 Rxc6) 49. c7 $18 {[%emt 0:00:30]} Rbc8 {[%emt 0:00:30]} 50. g6 {[%emt 0:00:30]} Kf8 $2 {[%emt 0:00:30]} (50... fxg6 51. fxe6 (51. fxg6 Rf8 $18) 51... Nxc7) 51. Rc5 $18 {[%emt 0:00:30]} Ne7 {[%emt 0:00:30]} 52. Rd8 {[%emt 0:00:30]} exf5 {[%emt 0:00:30]} 53. gxf7 {[%emt 0:00:30]} Kxf7 {[%emt 0:00:30]} 54. gxf5 {[%emt 0:00:30]} Ng8 {[%emt 0:00:30]} 55. Rcd5 {[%emt 0:00:30]} Ne7 {[%emt 0:00:30]} 56. R5d7 {[%emt 0:00:30]} Kf6 {[%emt 0:00:30]} 1-0

[Event "7th Sharjah Masters 2024"]
[Site "Sharjah"]
[Date "2024.05.22"]
[Round "9.17"]
[White "Nguyen, Thai Dai Van"]
[Black "Madaminov, Mukhiddin"]
[Result "1-0"]
[ECO "C42"]
[WhiteElo "2650"]
[BlackElo "2506"]
[Annotator "TA"]
[PlyCount "105"]
[EventDate "2024.05.13"]
[EventType "swiss"]
[EventCountry "UAE"]
[SourceTitle "playchess.com"]
[Source "ChessBase"]
[SourceQuality "1"]
[TimeControl "5400+30"]

{[%evp 57,105,36,108,59,130,128,159,158,154,159,337,310,520,520,491,363,331,184,183,66,62,104,72,8,64,70,286,82,91,0,245,0,44,47,60,66,403,380,398,393,407,407,407,407,1039,945,862,620,606,592]} 1. e4 {[%emt 1:31:00]} e5 {[%emt 1:31:00]} 2. Nf3 {[%emt 0:00:30]} Nf6 {[%emt 0:00:30]} 3. Nxe5 {[%emt 0:00:30]} d6 {[%emt 0:00:30]} 4. Nf3 {[%emt 0:00:30]} Nxe4 {[%emt 0:00:30]} 5. d4 {[%emt 0:00:30]} d5 {[%emt 0:00:30]} 6. Bd3 {[%emt 0:00:30]} Bd6 {[%emt 0:00:30]} 7. O-O {[%emt 0:00:30]} O-O {[%emt 0:00:30]} 8. c4 {[%emt 0:00:30]} c6 {[%emt 0:00:30]} 9. Re1 {[%emt 0:00:30]} Bf5 {[%emt 0:00:30]} 10. Ng5 {[%emt 0:00:30]} Re8 {[%emt 0:00:30]} 11. Bxe4 {[%emt 0:00:30]} dxe4 {[%emt 0:00:30]} 12. Nc3 {[%emt 0:00:30]} Nd7 {[%emt 0:00:30]} 13. Ngxe4 {[%emt 0:00:30]} Bxe4 {[%emt 0:00:30]} 14. Nxe4 {[%emt 0:00:30]} Bxh2+ {[%emt 0:00:30]} 15. Kf1 {[%emt 0:00:30]} Bc7 {[%emt 0:00:30]} 16. Bg5 {[%emt 0:00:30]} f6 {[%emt 0:00:30]} 17. Bh4 {[%emt 0:00:30]} Nf8 {[%emt 0:00:30]} 18. d5 {[%emt 0:00:30]} cxd5 {[%emt 0:00:30]} 19. cxd5 {[%emt 0:00:30]} Ng6 {[%emt 0:00:30]} 20. d6 {[%emt 0:00:30]} Nxh4 {[%emt 0:00:30]} 21. d7 {[%emt 0:00:30]} Re7 {[%emt 0:00:30]} 22. Qd5+ {[%emt 0:00:30]} Kh8 {[%emt 0:00:30]} 23. Nc5 {[%emt 0:00:30]} Ng6 {[%emt 0:00:30]} 24. Rxe7 {[%emt 0:00:30]} Nxe7 {[%emt 0:00:30]} 25. Qe6 {[%emt 0:00:30]} Ng6 {[%emt 0:00:30]} 26. Nxb7 {[%emt 0:00:30]} Qg8 {[%emt 0:00:30]} 27. Qxg8+ {[%emt 0:00:30]} Rxg8 {[%emt 0:00:30]} 28. Rd1 {[%emt 0:00:30]} Bd8 {[%emt 0:00:30]} 29. b4 {[%emt 0:00:30]} Ne5 {[%emt 0:00:30]} (29... h5 $14) 30. f4 $16 {[%emt 0:00:30]} Nf7 {[%emt 0:00:30]} ({Black should play} 30... Nc4 $1 $14 31. Rc1 Nb6) 31. a4 $16 {[%emt 0:00:30]} g5 {[%emt 0:00:30]} 32. Re1 $1 {[%emt 0:00:30]} Bc7 {[%emt 0:00:30]} 33. Rc1 $1 {[%emt 0:00:30]} Bxf4 $2 {[%emt 0:00:30]} (33... Bb8 $16 {might work better.} 34. Rc8 Bxf4) 34. Rc8 $18 {[%emt 0:00:30]} a6 $2 {[%emt 0:00:30]} (34... Kg7 35. b5 h5) 35. a5 $18 {[%emt 0:00:30]} (35. d8=R Nxd8 36. Nxd8 h5 37. Nf7+ Kh7 38. Rxg8 Kxg8 39. Nh6+ Kh7 $17) 35... Kg7 {[%emt 0:00:30]} 36. b5 {[%emt 0:00:30]} (36. d8=R Nxd8 37. Rxd8 Rxd8 38. Nxd8 Kg6 $14) (36. Rxg8+ Kxg8 37. d8=B (37. b5 axb5 38. Ke2 Bc7 $17) 37... Nxd8 38. Nxd8 h5 $11) 36... axb5 {[%emt 0:00:30]} 37. a6 (37. d8=Q Nxd8 38. Rxd8 h5 $17) (37. Ke2 $142) 37... Bb8 $18 {[%emt 0:00:30]} 38. Nc5 {[%emt 0:01:00]} (38. d8=B Nxd8 39. Nxd8 Ba7 $11) (38. Nd6 $18 {Threatens to win with Rxg8+.} Rd8 (38... Bxd6 $2 39. a7 $18) 39. Nxf7 (39. Nxb5 h5 $11) 39... Rxd7 40. Rxb8 Rd1+ 41. Kf2 (41. Ke2 Ra1 $18)) 38... Ba7 {[%emt 0:00:30]} 39. Ne6+ {[%emt 0:00:30]} Kh8 {[%emt 0:00:30]} 40. Rc7 {[%emt 0:00:30]} (40. d8=R Nxd8 41. Nxd8 h5 42. Nf7+ Kg7 $11) (40. Re8 $16 b4 41. Ke2) 40... Be3 {[%emt 0:00:30]} (40... Bb8 $11 41. Rb7 b4) 41. Ke2 $1 $14 {[%emt 0:00:30]} Bg1 $2 {[%emt 0:00:30]} (41... Bb6 $14 42. Rb7 Bg1) 42. Rc1 $2 {[%emt 0:00:30]} (42. Rc8 $18 {and the rest is easy.}) 42... Ba7 $16 {[%emt 0:00:30] [#]} (42... Nd8 $2 43. Nxd8 Rxd8 44. Rc8 $18) 43. Rc7 $2 {[%emt 0:00:30]} (43. Rc8 $1 $16 {[%cal Rc8e8] Hoping for Re8.} h5 (43... b4 44. Rc7 $11) 44. Re8) 43... Bg1 $1 $18 {[%emt 0:00:30]} 44. Rc1 $2 {[%emt 0:00:30]} (44. Rc8 $18) 44... Ba7 $1 $14 {[%emt 0:00:30]} (44... Nd8 $2 45. Nxd8 Rxd8 46. Rc8 $18) 45. Rc8 {[%emt 0:00:30]} h5 {[%emt 0:00:30]} 46. Nc7 $1 {[%emt 0:00:30]} b4 $2 {[%emt 0:00:30][%mdl 8192]} ({Black should try} 46... Rd8 $1 $14) 47. Nb5 $18 {[%emt 0:00:30]} b3 {[%emt 0:00:30]} 48. Kd2 {[%emt 0:00:30]} (48. Nxa7 $2 b2 49. Rxg8+ Kxg8 $19) 48... b2 {[%emt 0:00:30]} 49. Kc2 $1 {[%emt 0:00:30]} (49. Nxa7 $2 b1=Q (49... b1=B $2 50. Nc6 $18) 50. Nc6 Qa2+ 51. Kc3 Qxa6 (51... Qxg2 $2 52. Ne5 $19) 52. Rxg8+ Kxg8 $19) 49... Bb6 {[%emt 0:00:30]} 50. Nd6 {[%emt 0:00:30]} ({Not} 50. Kxb2 Rd8 51. Nc7 (51. Rxd8+ Nxd8 52. Kc2 Kg7 $17) 51... h4 $11) (50. a7 Bxa7 51. Nxa7 g4 $11) 50... Nd8 {[%emt 0:00:30]} (50... Nxd6 $142 51. Rxg8+ Kxg8) 51. Rb8 $18 {[%emt 0:00:30]} Bc7 {[%emt 0:00:30]} 52. a7 {[%emt 0:00:30]} (52. Rxb2 $2 {loses.} Bxd6 53. Kb3 Nf7 $19) 52... Bxd6 {[%emt 0:00:30] [#]} 53. Rc8 $1 {[%emt 0:00:30]} (53. a8=R $2 {too greedy.} Bxb8 54. Rxb8 Kg7 $19) 1-0

[Event "7th Sharjah Masters 2024"]
[Site "Sharjah"]
[Date "2024.05.22"]
[Round "9.18"]
[White "Muradli, Mahammad"]
[Black "Sargsyan, Shant"]
[Result "0-1"]
[ECO "E05"]
[WhiteElo "2561"]
[BlackElo "2637"]
[Annotator "TA"]
[PlyCount "118"]
[EventDate "2024.05.13"]
[EventType "swiss"]
[EventCountry "UAE"]
[SourceTitle "playchess.com"]
[Source "ChessBase"]
[SourceQuality "1"]
[TimeControl "5400+30"]

{[%evp 31,118,0,16,0,0,0,0,0,0,0,0,0,0,0,0,-29,0,0,0,0,0,0,8,4,3,0,6,0,0,0,0,0,0,0,0,0,0,0,0,0,0,0,0,0,0,-55,-44,-58,-42,-43,-54,-70,-58,-92,-90,-111,-101,-175,-158,-587,-586,-581,-554,-5481,-5302,-12848,-12827,-12419,-12345,-5685,-5977,-29966,-29970,-29969,-29970,-29970,-29971,-29971,-29971,-29972,-29973,-29972,-29973,-29973,-29974,-29974,0,-29975,-29976]} 1. d4 {[%emt 1:31:00]} Nf6 {[%emt 1:31:00]} 2. c4 {[%emt 0:00:30]} e6 {[%emt 0:00:30]} 3. Nf3 {[%emt 0:00:30]} d5 {[%emt 0:00:30]} 4. g3 {[%emt 0:00:30]} Be7 {[%emt 0:00:30]} 5. Bg2 {[%emt 0:00:30]} O-O {[%emt 0:00:30]} 6. O-O {[%emt 0:00:30]} dxc4 {[%emt 0:00:30]} 7. Qc2 {[%emt 0:00:30]} a6 {[%emt 0:00:30]} 8. a4 {[%emt 0:00:30]} Bd7 {[%emt 0:00:30]} 9. Qxc4 {[%emt 0:00:30]} Bc6 {[%emt 0:00:30]} 10. Bg5 {[%emt 0:00:30]} Nbd7 {[%emt 0:00:30]} 11. Nc3 {[%emt 0:00:30]} h6 {[%emt 0:00:30]} 12. Bxf6 {[%emt 0:00:30] E05: Open Catalan: 5 Nf3 Be7.} Nxf6 {[%emt 0:00:30]} 13. a5 {[%emt 0:00:30]} Qd6 {[%emt 0:00:30]} 14. Rfd1 {[%emt 0:00:30]} Rfd8 {[%emt 0:00:30]} 15. e3 {[%emt 0:00:30]} Rab8 {[%emt 0:00:30]} 16. Qe2 {[%emt 0:00:30]} Bf8 {[%emt 0:00:30]} 17. h4 {[%emt 0:00:30]} Qe7 {[%emt 0:00:30]} 18. Rd2 {[%emt 0:00:30]} Ne4 {[%emt 0:00:30]} 19. Rc2 {[%emt 0:00:30]} Nf6 {[%emt 0:00:30]} 20. Rd2 {[%emt 0:00:30]} Ne4 {[%emt 0:00:30]} 21. Rdd1 {[%emt 0:00:30]} Nf6 {[%emt 0:00:30]} 22. Qc2 {[%emt 0:00:30]} Rbc8 {[%emt 0:00:30]} 23. Rd2 {[%emt 0:00:30]} Rb8 {[%emt 0:00:30]} 24. Rdd1 {[%emt 0:00:30]} Rbc8 {[%emt 0:00:30]} 25. Qb3 $146 {[%emt 0:00:30]} ({Predecessor:} 25. Qe2 Bd5 26. Nxd5 exd5 27. Bh3 Rb8 28. Ne5 Qe8 29. h5 Bd6 30. Nd3 Qe7 31. Rdc1 c6 32. Bf5 Kh8 33. Kg2 Re8 34. Rab1 Bb4 35. Ra1 Bd6 36. Rab1 Bb4 37. Ra1 {½-½ Wojtaszek,R (2691)-Matlakov,M (2688) FIDE World Cup 2021 (3.1)}) 25... Qb4 {[%emt 0:00:30]} 26. Qa2 {[%emt 0:00:30]} Bd5 {[%emt 0:00:30]} 27. Nxd5 {[%emt 0:00:30]} exd5 {[%emt 0:00:30]} 28. Ne5 {[%emt 0:00:30]} c6 {[%emt 0:00:30]} 29. Nd3 {[%emt 0:00:30]} Qd6 {[%emt 0:00:30]} 30. Nc5 {[%emt 0:00:30]} Qc7 {[%emt 0:00:30]} 31. b4 {[%emt 0:00:30]} Re8 {[%emt 0:00:30]} 32. Re1 {[%emt 0:00:30]} Bd6 {[%emt 0:00:30]} 33. Bf3 {[%emt 0:00:30]} Re7 {[%emt 0:00:30]} 34. Kg2 {[%emt 0:00:30]} Rce8 {[%emt 0:00:30]} 35. Re2 {[%emt 0:00:30]} Qc8 {[%emt 0:00:30]} 36. Qc2 {[%emt 0:00:30]} g6 {[%emt 0:00:30]} 37. Rae1 {[%emt 0:00:30]} Kg7 {[%emt 0:00:30]} 38. Kg1 {[%emt 0:00:30]} ({White should try} 38. Rh1 $11) 38... Qh3 $15 {[%emt 0:00:30]} 39. Bg2 {[%emt 0:00:30]} Qg4 {[%emt 0:00:30]} 40. Qd1 {[%emt 0:00:30]} g5 {[%emt 0:00:30]} 41. hxg5 {[%emt 0:00:30]} Qxg5 {[%emt 0:00:30]} 42. Qd3 {[%emt 0:00:30]} h5 {[%emt 0:00:30]} 43. e4 {[%emt 0:00:30]} Bxc5 {[%emt 0:00:30]} 44. bxc5 {[%emt 0:00:30]} (44. dxc5 $17 {is a better defense.} dxe4 45. Qe3) 44... dxe4 $19 {[%emt 0:00:30]} 45. Bxe4 $2 {[%emt 0:00:30]} (45. Qc2 $17) 45... Rxe4 $19 {[%emt 0:00:30]} (45... h4 $2 46. Bg2 (46. Bf3 $2 Rxe2 47. Bxe2 Nd5 $19) 46... Rxe2 47. Rxe2 Rxe2 48. Qxe2 hxg3 49. Bf3 $19) 46. Rxe4 {[%emt 0:00:30]} Qg6 $1 {[%emt 0:00:30]} ({Stronger than} 46... Rxe4 47. Rxe4 Nxe4 48. Qxe4 $11) 47. f3 {[%emt 0:00:30]} Qxg3+ {[%emt 0:00:30]} ({Not} 47... Nxe4 48. fxe4 h4 49. Kf2 $11) 48. Kh1 {[%emt 0:00:30]} Rxe4 {[%emt 0:00:30]} 49. Rxe4 {[%emt 0:00:30]} Nxe4 {[%emt 0:00:30]} 50. Qxe4 {[%emt 0:00:30]} h4 {[%emt 0:00:30]} 51. f4 {[%emt 0:00:30] [#]} h3 $1 {[%emt 0:00:30]} 52. Qe5+ {[%emt 0:00:30]} f6 {[%emt 0:00:30]} 53. Qe7+ {[%emt 0:00:30]} Kg6 {[%emt 0:00:30]} 54. Qe4+ {[%emt 0:00:30]} Kh6 {[%emt 0:00:30]} 55. d5 {[%emt 0:00:30]} cxd5 {[%emt 0:00:30]} 56. Qxd5 {[%emt 0:00:30]} h2 {[%emt 0:00:30]} ({Less strong is} 56... Qxf4 57. Qxb7 Qf2 58. Qd5 $17) 57. Qd1 {[%emt 0:00:30]} Qg1+ {[%emt 0:00:30]} (57... Qxf4 $2 58. c6 $19) 58. Qxg1 {[%emt 0:00:30]} hxg1=Q+ {[%emt 0:00:30]} 59. Kxg1 {[%emt 0:00:30] [#]} Kh5 $1 {[%emt 0:00:30]} 0-1

[Event "7th Sharjah Masters 2024"]
[Site "Sharjah"]
[Date "2024.05.22"]
[Round "9.19"]
[White "Gledura, Benjamin"]
[Black "Gholami Orimi, Mahdi"]
[Result "1/2-1/2"]
[ECO "A13"]
[WhiteElo "2619"]
[BlackElo "2470"]
[Annotator "RC"]
[PlyCount "41"]
[EventDate "2024.05.13"]
[EventType "swiss"]
[EventCountry "UAE"]
[SourceTitle "playchess.com"]
[Source "ChessBase"]
[SourceQuality "1"]
[TimeControl "5400+30"]

1. c4 {[%emt 1:31:00]} e6 {[%emt 1:31:00]} 2. g3 {[%emt 0:00:30]} d5 {[%emt 0:00:30]} 3. Bg2 {[%emt 0:00:30]} Nf6 {[%emt 0:00:30]} 4. Nf3 {[%emt 0:00:30]} dxc4 {[%emt 0:00:30]} 5. Qa4+ {[%emt 0:00:30]} Bd7 {[%emt 0:00:30]} 6. Qxc4 {[%emt 0:00:30]} c5 {[%emt 0:00:30]} 7. Ne5 {[%emt 0:00:30]} Qc8 {[%emt 0:00:30]} 8. Qd3 {[%emt 0:00:30]} Nc6 {[%emt 0:00:30]} 9. Nxd7 {[%emt 0:00:30]} Nxd7 {[%emt 0:00:30]} 10. O-O {[%emt 0:00:30]} Be7 {[%emt 0:00:30]} 11. Nc3 {[%emt 0:00:30]} O-O {[%emt 0:00:30]} 12. b3 {[%emt 0:00:30]} Nde5 {[%emt 0:00:30]} 13. Qc2 {[%emt 0:00:30]} Rd8 {[%emt 0:00:30]} 14. Rd1 {[%emt 0:00:30]} Qd7 {[%emt 0:00:30]} 15. d3 {[%emt 0:00:30]} Rac8 {[%emt 0:00:30]} 16. Qd2 {[%emt 0:00:30]} b6 {[%emt 0:00:30]} 17. Rb1 {[%emt 0:00:30]} f5 {[%emt 0:00:30]} 18. Qe1 {[%emt 0:00:30]} Bf6 {[%emt 0:00:30]} 19. Bb2 {[%emt 0:00:30]} Nb4 {[%emt 0:00:30]} 20. Qf1 {[%emt 0:00:30]} Ng4 {[%emt 0:00:30]} 21. h3 {[%emt 0:00:30]} 1/2-1/2

[Event "7th Sharjah Masters 2024"]
[Site "Sharjah"]
[Date "2024.05.22"]
[Round "9.20"]
[White "Sivuk, Vitaly"]
[Black "Radjabov, Teimour"]
[Result "1/2-1/2"]
[ECO "B31"]
[WhiteElo "2544"]
[BlackElo "2723"]
[Annotator "TA"]
[PlyCount "27"]
[EventDate "2024.05.13"]
[EventType "swiss"]
[EventCountry "UAE"]
[SourceTitle "playchess.com"]
[Source "ChessBase"]
[SourceQuality "1"]
[TimeControl "5400+30"]

{[%evp 19,27,8,16,0,0,0,0,0,0,0]} 1. e4 {[%emt 1:31:00]} c5 {[%emt 1:31:00]} 2. Nf3 {[%emt 0:00:30]} Nc6 {[%emt 0:00:30]} 3. Bb5 {[%emt 0:00:30]} g6 {[%emt 0:00:30]} 4. O-O {[%emt 0:00:30]} Bg7 {[%emt 0:00:30]} 5. Re1 {[%emt 0:00:30]} Nf6 {[%emt 0:00:30]} 6. c3 {[%emt 0:00:30]} O-O {[%emt 0:00:30]} 7. d4 {[%emt 0:00:30]} cxd4 {[%emt 0:00:30]} 8. cxd4 {[%emt 0:00:30]} d5 {[%emt 0:00:30]} 9. e5 {[%emt 0:00:30]} Ne4 {[%emt 0:00:30]} 10. Bxc6 {[%emt 0:00:30]} bxc6 {[%emt 0:00:30] The position is equal.} 11. Be3 {[%emt 0:00:30]} Qb6 {[%emt 0:00:30]} 12. Qc1 {[%emt 0:00:30]} a5 {[%emt 0:00:30]} 13. Nc3 {[%emt 0:00:30]} Nxc3 {[%emt 0:00:30]} 14. Qxc3 {[%emt 0:00:30] A rather calm draw.   Weighted Error Value: White=0.06 (flawless) /Black=0.00 (flawless) .  OK:         	White=1     	Black=2      Best:        	---       	Black=1} 1/2-1/2